Workbook

Sheet Общий
A1: Система сбора отчетности Sunny | B1: http://www.sunny1.ru
A4: Информация о структуре
A5: Цвет ячейки структуры
A6: Цвет заблокированной ячейки
A7: Цвет ячейки с формулой или заблокированной
A10: Общая информация о бланке
A11: 1 | B11: 2
A12: Версия форм | B12: от 11.01.2023 | D12: Предупреждение: - работа с файлом в других офисных пакетах, кроме как Microsoft Office не возможна. - изменение цвета заблокированных ячеек, может повредить структуре файла, и обновление может пройти с ошибками, можно изменять ширину колонок и высоту строк. - команды вырезать/вставить, или перетаскивание ячеек за рамку может изменить итоговые формулы.
A13: Код версии | B13: 1.1.11
A14: Код формы | B14: дк.22/вмз
A15: Статус | B15: Изменён
A16: Код учреждения | B16: дмш8
A17: Отчёт на дату | B17: 2023-01-01
A18: Наименование учреждения | B18: МАУ ДО "Детская музыкальная школа № 8" "РОНДО" | D18: Ваш персональный кабинет:
A19: по ОКПО | B19: 40887958 | D19: http://sunny1.ru/дк?дмш8
A20: Ф.И.О. Руководителя | B20: Гилев Б.А.
A21: Телефон руководителя | B21: 73422056235
A22: Ф.И.О. исполнителя | B22: Завьялова Ю.А. | D22: Если не работают кнопки:
A23: Должность исполнителя | B23: Заместитель директора | D23: http://sunny1.ru/cabinet.php?view=help#macros
A24: Телефон исполнителя | B24: 89824846053
A25: Обособленное подразделение
A26: Руководитель со стороны ЦБУ | B26: Сысуева Ольга Леонидовна
A27: Учредитель | B27: Администрация города Перми
A28: по ОКАТО | B28: 57401000000
A29: Наименование органа, осуществляющего полномочия учредителя | B29: Департамент культуры и молодежной политики администрации города Перми
A30: по ОКПО, БК | B30: 12036055
A31: Глава по БК | B31: 924
A32: Единица измерения по ОКЕИ | B32: 383
A35: Дополнительные функции
A45: Формы в отчёте
A46: Общий | B46: переход"
A47: заглавие | B47: переход"
A48: Часть 1 | B48: переход"
A49: Часть 2 | B49: переход"
A50: Часть 3 | B50: переход"

Sheet Справочник (hidden)
A1: Поставщики
A2: Автозавод.48
A3: Актив Финанс Групп
A4: Библ.Кузьм.
A5: ГБУЗ "Пермская городская клиническая больница №3"
A6: ГОЛ-Д
A7: Дворец Молодежи
A8: ДШИ №13
A9: МАУК "ПГДК им. им. А.Г.Солдатова
A10: МАУК ЦД Альянс
A11: МОУ ДОД СОШ №34
A12: МУЗ ГБ № 11
A13: ОАО Новогор-Прикамье
A14: ОМБ минус
A15: ООО "Артель Урала"
A16: ООО "ВЕКТОР+"
A17: ООО "Новогор-Прикамье"
A18: ООО "УК "Мой дом"
A19: ООО "УК "Моторостроитель"
A20: ООО "УК "Пермская модель комфорта"
A21: ООО "УК "ЭксКом"
A22: ООО "УК" Жилкомцентр
A23: ООО "УК" ПРОФИ-ДОМ
A24: ООО "Управдом"
A25: ООО Артель Урала
A26: ООО Гарант
A27: ООО Дорстройтранс
A28: ООО Жилсервис
A29: ООО Камадорсервис
A30: ООО Комфорт Прикамья
A31: ООО Крона
A32: ООО Наш дом
A33: ООО Новая городская инфраструктура Прикамья
A34: ООО Новогор-Прикамья
A35: ООО Профи дом
A36: ООО РЭП
A37: ООО Техноресурс
A38: ООО УК "ПМК"
A39: ООО УК "ТехКомфорт"
A40: ООО УК Вектор
A41: ООО УК ПМК
A42: ООО УК Техком
A43: ООО УК Техкомфорт
A44: ООО Экском
A45: ООО"Уралмонтажстрой"
A46: Пермводоканал
A47: Пермская модель комфорта
A48: ПКФилар
A49: ПМК
A50: Профи М
A51: ТСЖ "ВЕСНА"
A52: ТСЖ Чернышевского
A53: УК Домком
A54: УК Жилкомцентр
A55: УК Код
A56: УК Мастер комфорта
A57: УК Мой дом
A58: УК Моторостроитель
A59: УК Нартекс
A60: УК Наш микрорайон
A61: УК Сантос
A62: УК Техком
A63: УК Экском
A64: ЦК Солдатова

Sheet Протокол изменений (hidden)
A6: Протокол изменений
A7: Форма | B7: Строка | C7: Графа | D7: Старое значение | E7: Новое значение | F7: Текущее значение | G7: Дата и время | H7: Специалист

Sheet заглавие
A4: ОТЧЕТ
A5: о выполнении муниципального задания на оказание
A6: муниципальных услуг (выполнение работ) N ________
A7: на 2022 год и плановый период 2023 и 2024 годов
E9: Форма | F9: Коды
E10: по ОКУД | F10: 0506501
D11: на "01" января 2023 г. | E11: Дата | F11: 2023-01-01
E12: Код по сводному реестру | F12: 57308552
B13: Наименование муниципального учреждения | C13: Муниципальное автономное учреждение дополнительного образования города Перми "Детская музыкальная школа № 8 "РОНДО"
B14: Виды деятельности муниципального учреждения | C14: Образование в области культуры | E14: По ОКВЭД | F14: 85.41.2
C15: Образование дополнительное детей и взрослых | E15: По ОКВЭД | F15: 85.41
E16: По ОКВЭД
C17: (указываются виды деятельности муниципального учреждения, по которым ему утверждено муниципальное задание)
B18: Периодичность | C18: Ежеквартально
C19: (указывается в соответствии с периодичностью представления отчета о выполнении муниципального задания, установленной в муниципальном задании)

Sheet Часть 1
A1: Часть 1. Сведения об оказываемых муниципальных услугах
H3: Раздел _1___
A5: 1. Наименование муниципальной услуги: | H5: Код по общероссийскому базовому перечню или региональному перечню | J5: 42.Г42.0
A6: Реализация дополнительных общеразвивающих программ
A7: 2. Категории потребителей муниципальной услуги:
A8: Физические лица
A9: 3. Сведения о фактическом достижении показателей, характеризующих объем и качество муниципальной услуги
A10: 2. Категории потребителей муниципальной услуги:
A12: 3. Сведения о фактическом достижении показателей, характеризующих объем и качество муниципальной услуги
A13: 3.1. Сведения о фактическом достижении показателей, характеризующих качество муниципальной услуги
A14: Уникальный номер реестровой записи | B14: Показатель, характеризующий содержание муниципальной услуги | E14: Показатель, характеризующий условия (формы) оказания муниципальной услуги | G14: Показатель качества муниципальной услуги
G15: наименование показателя | H15: единица измерения | J15: значение | M15: допустимое (возможное) отклонение | N15: отклонение, превышающее допустимое (возможное) отклонение | O15: причина отклонения
B16: наименование показателя | C16: наименование показателя | D16: наименование показателя | E16: наименование показателя | F16: наименование показателя | H16: наименование | I16: код по ОКЕИ | J16: утверждено в муниципальном задании на год | K16: утверждено в муниципальном задании на отчетную дату | L16: исполнено на отчетную дату
A17: 1 | B17: 2 | C17: 3 | D17: 4 | E17: 5 | F17: 6 | G17: 7 | H17: 8 | I17: 9 | J17: 10 | K17: 11 | L17: 12 | M17: 13 | N17: 14 | O17: 15
A18: 804200О.99.0.ББ52АЕ76000 | B18: Художественной направленности | E18: Очная | G18: 1. Доля детей, осваивающих дополнительные образовательные программы в образовательном учреждении | H18: % | J18: 7 | K18: 7 | L18: 7 | M18: =J18*5% -> 0 | N18: =IF((J18-M18-L18)<0,0,J18-M18-L18) -> 0
G19: 2. Доля родителей (законных представителей), удовлетворенных условиями и качеством предоставляемой образовательной услуги | H19: % | J19: 100 | K19: 100 | L19: 100 | M19: =J19*5% -> 5 | N19: =IF((J19-M19-L19)<0,0,J19-M19-L19) -> 0
G20: 3. Доля выпускников, продолживших обучение по специальности, от общего количества выпускников | H20: % | J20: 9 | K20: 9 | L20: 9 | M20: =J20*5% -> 0 | N20: =IF((J20-M20-L20)<0,0,J20-M20-L20) -> 0
G21: 4. Доля получателей услуги на конец учебного года от количества получателей услуги на начало учебного года | H21: % | J21: 100 | K21: 100 | L21: 100 | M21: =J21*5% -> 5 | N21: =IF((J21-M21-L21)<0,0,J21-M21-L21) -> 0
A32: 3.2. Сведения о фактическом достижении показателей, характеризующих объем муниципальной услуги
A33: Уникальный номер реестровой записи | B33: Показатель, характеризующий содержание муниципальной услуги | E33: Показатель, характеризующий условия (формы) оказания муниципальной услуги | G33: Показатель объема муниципальной услуги | P33: Размер платы (цена, тариф)
G34: наименование показателя | H34: единица измерения | J34: значение | M34: допустимое (возможное) отклонение | N34: отклонение, превышающее допустимое (возможное) отклонение | O34: причина отклонения
B35: наименование показателя | C35: наименование показателя | D35: наименование показателя | E35: наименование показателя | F35: наименование показателя | H35: наименование | I35: код по ОКЕИ | J35: утверждено в муниципальном задании на год | K35: утверждено в муниципальном задании на отчетную дату | L35: исполнено на отчетную дату
A36: 1 | B36: 2 | C36: 3 | D36: 4 | E36: 5 | F36: 6 | G36: 7 | H36: 8 | I36: 9 | J36: 10 | K36: 11 | L36: 12 | M36: 13 | N36: 14 | O36: 15 | P36: 16
A37: 804200О.990.ББ52АЕ76000 | B37: Художественной направленности | E37: Очная | G37: Количество человеко-часов | H37: Человеко-час | J37: 9150 | K37: 9150 | L37: 9150 | M37: =J37*5% -> 458 | N37: =IF((J37-M37-L37)<0,0,J37-M37-L37) -> 0

Sheet Часть 1 (2)
A1: Часть 1. Сведения об оказываемых муниципальных услугах
H3: Раздел _2___
A5: 1. Наименование муниципальной услуги: | H5: Код по общероссийскому базовому перечню или региональному перечню | J5: 42.Д44.0
A6: Реализация дополнительных предпрофессиональных программ в области искусств
A7: 2. Категории потребителей муниципальной услуги:
A8: Физические лица
A9: 3. Сведения о фактическом достижении показателей, характеризующих объем и качество муниципальной услуги
A10: 2. Категории потребителей муниципальной услуги:
A12: 3. Сведения о фактическом достижении показателей, характеризующих объем и качество муниципальной услуги
A13: 3.1. Сведения о фактическом достижении показателей, характеризующих качество муниципальной услуги
A14: Уникальный номер реестровой записи | B14: Показатель, характеризующий содержание муниципальной услуги | E14: Показатель, характеризующий условия (формы) оказания муниципальной услуги | G14: Показатель качества муниципальной услуги
G15: наименование показателя | H15: единица измерения | J15: значение | M15: допустимое (возможное) отклонение | N15: отклонение, превышающее допустимое (возможное) отклонение | O15: причина отклонения
B16: наименование показателя | C16: наименование показателя | D16: наименование показателя | E16: наименование показателя | F16: наименование показателя | H16: наименование | I16: код по ОКЕИ | J16: утверждено в муниципальном задании на год | K16: утверждено в муниципальном задании на отчетную дату | L16: исполнено на отчетную дату
A17: 1 | B17: 2 | C17: 3 | D17: 4 | E17: 5 | F17: 6 | G17: 7 | H17: 8 | I17: 9 | J17: 10 | K17: 11 | L17: 12 | M17: 13 | N17: 14 | O17: 15
A18: 802112О.99.0.ББ55АА48000 | B18: Фортепиано | E18: Очная | G18: 1. Доля детей, осваивающих дополнительные образовательные программы в образовательном учреждении | H18: % | J18: 42 | K18: 42 | L18: 41 | M18: =J18*5% -> 2 | N18: =IF((J18-M18-L18)<0,0,J18-M18-L18) -> 0
G19: 2. Доля родителей (законных представителей), удовлетворенных условиями и качеством предоставляемой образовательной услуги | H19: % | J19: 100 | K19: 100 | L19: 100 | M19: =J19*5% -> 5 | N19: =IF((J19-M19-L19)<0,0,J19-M19-L19) -> 0
G20: 3. Доля получателей услуги на конец учебного года от количества получателей услуги на начало учебного года | H20: % | J20: 100 | K20: 100 | L20: 100 | M20: =J20*5% -> 5 | N20: =IF((J20-M20-L20)<0,0,J20-M20-L20) -> 0
M21: =J21*5% -> 0 | N21: =IF((J21-M21-L21)<0,0,J21-M21-L21) -> 0
A22: 802112О.99.0.ББ55АБ04000 | B22: Струнные инструменты | E22: Очная | G22: 1. Доля детей, осваивающих дополнительные образовательные программы в образовательном учреждении | H22: % | J22: 18 | K22: 18 | L22: 17 | M22: =J22*5% -> 1 | N22: =IF((J22-M22-L22)<0,0,J22-M22-L22) -> 0
G23: 2. Доля родителей (законных представителей), удовлетворенных условиями и качеством предоставляемой образовательной услуги | H23: % | J23: 100 | K23: 100 | L23: 100 | M23: =J23*5% -> 5 | N23: =IF((J23-M23-L23)<0,0,J23-M23-L23) -> 0
G24: 3. Доля получателей услуги на конец учебного года от количества получателей услуги на начало учебного года | H24: % | J24: 100 | K24: 100 | L24: 100 | M24: =J24*5% -> 5 | N24: =IF((J24-M24-L24)<0,0,J24-M24-L24) -> 0
M25: =J25*5% -> 0 | N25: =IF((J25-M25-L25)<0,0,J25-M25-L25) -> 0
A26: 802112О.99.0.ББ55АБ60000 | B26: Духовые и ударные инструменты | E26: Очная | G26: 1. Доля детей, осваивающих дополнительные образовательные программы в образовательном учреждении | H26: % | J26: 12 | K26: 12 | L26: 13 | M26: =J26*5% -> 1 | N26: =IF((J26-M26-L26)<0,0,J26-M26-L26) -> 0
G27: 2. Доля родителей (законных представителей), удовлетворенных условиями и качеством предоставляемой образовательной услуги | H27: % | J27: 100 | K27: 100 | L27: 100 | M27: =J27*5% -> 5 | N27: =IF((J27-M27-L27)<0,0,J27-M27-L27) -> 0
G28: 3. Доля получателей услуги на конец учебного года от количества получателей услуги на начало учебного года | H28: % | J28: 100 | K28: 100 | L28: 100 | M28: =J28*5% -> 5 | N28: =IF((J28-M28-L28)<0,0,J28-M28-L28) -> 0
M29: =J29*5% -> 0 | N29: =IF((J29-M29-L29)<0,0,J29-M29-L29) -> 0
A30: 802112О.99.0.ББ55АВ16000 | B30: Народные инструменты | E30: Очная | G30: 1. Доля детей, осваивающих дополнительные образовательные программы в образовательном учреждении | H30: % | J30: 21 | K30: 21 | L30: 22 | M30: =J30*5% -> 1 | N30: =IF((J30-M30-L30)<0,0,J30-M30-L30) -> 0
G31: 2. Доля родителей (законных представителей), удовлетворенных условиями и качеством предоставляемой образовательной услуги | H31: % | J31: 100 | K31: 100 | L31: 100 | M31: =J31*5% -> 5 | N31: =IF((J31-M31-L31)<0,0,J31-M31-L31) -> 0
G32: 3. Доля получателей услуги на конец учебного года от количества получателей услуги на начало учебного года | H32: % | J32: 100 | K32: 100 | L32: 100 | M32: =J32*5% -> 5 | N32: =IF((J32-M32-L32)<0,0,J32-M32-L32) -> 0
M33: =J33*5% -> 0 | N33: =IF((J33-M33-L33)<0,0,J33-M33-L33) -> 0
A44: 3.2. Сведения о фактическом достижении показателей, характеризующих объем муниципальной услуги
A45: Уникальный номер реестровой записи | B45: Показатель, характеризующий содержание муниципальной услуги | E45: Показатель, характеризующий условия (формы) оказания муниципальной услуги | G45: Показатель объема муниципальной услуги | P45: Размер платы (цена, тариф)
G46: наименование показателя | H46: единица измерения | J46: значение | M46: допустимое (возможное) отклонение | N46: отклонение, превышающее допустимое (возможное) отклонение | O46: причина отклонения
B47: наименование показателя | C47: наименование показателя | D47: наименование показателя | E47: наименование показателя | F47: наименование показателя | H47: наименование | I47: код по ОКЕИ | J47: утверждено в муниципальном задании на год | K47: утверждено в муниципальном задании на отчетную дату | L47: исполнено на отчетную дату
A48: 1 | B48: 2 | C48: 3 | D48: 4 | E48: 5 | F48: 6 | G48: 7 | H48: 8 | I48: 9 | J48: 10 | K48: 11 | L48: 12 | M48: 13 | N48: 14 | O48: 15 | P48: 16
A49: 802112О.99.0.ББ55АА48000 | B49: Фортепиано | E49: Очная | G49: Количество человеко-часов | H49: Человеко-час | J49: 55266 | K49: 55266 | L49: 54900 | M49: =J49*5% -> 2,763 | N49: =IF((J49-M49-L49)<0,0,J49-M49-L49) -> 0
A50: 802112О.99.0.ББ55АБ04000 | B50: Струнные инструменты | E50: Очная | G50: Количество человеко-часов | H50: Человеко-час | J50: 23424 | K50: 23424 | L50: 23058 | M50: =J50*5% -> 1,171 | N50: =IF((J50-M50-L50)<0,0,J50-M50-L50) -> 0
A51: 802112О.99.0.ББ55АБ60000 | B51: Духовые и ударные инструменты | E51: Очная | G51: Количество человеко-часов | H51: Человеко-час | J51: 15372 | K51: 15372 | L51: 15738 | M51: 769 | N51: 0
A52: 802112О.99.0.ББ55АВ16000 | B52: Народные инструменты | E52: Очная | G52: Количество человеко-часов | H52: Человеко-час | J52: 28548 | K52: 28548 | L52: 28914 | M52: 1,427 | N52: 0

Sheet Часть 1 (3) (hidden)
A1: Часть 1. Сведения об оказываемых муниципальных услугах
H3: Раздел ____
A5: 1. Наименование муниципальной услуги: | H5: Код по общероссийскому базовому перечню или региональному перечню
A7: 2. Категории потребителей муниципальной услуги:
A9: 3. Сведения о фактическом достижении показателей, характеризующих объем и качество муниципальной услуги
A10: 2. Категории потребителей муниципальной услуги:
A12: 3. Сведения о фактическом достижении показателей, характеризующих объем и качество муниципальной услуги
A13: 3.1. Сведения о фактическом достижении показателей, характеризующих качество муниципальной услуги
A14: Уникальный номер реестровой записи | B14: Показатель, характеризующий содержание муниципальной услуги | E14: Показатель, характеризующий условия (формы) оказания муниципальной услуги | G14: Показатель качества муниципальной услуги
G15: наименование показателя | H15: единица измерения | J15: значение | M15: допустимое (возможное) отклонение | N15: отклонение, превышающее допустимое (возможное) отклонение | O15: причина отклонения
B16: наименование показателя | C16: наименование показателя | D16: наименование показателя | E16: наименование показателя | F16: наименование показателя | H16: наименование | I16: код по ОКЕИ | J16: утверждено в муниципальном задании на год | K16: утверждено в муниципальном задании на отчетную дату | L16: исполнено на отчетную дату
A17: 1 | B17: 2 | C17: 3 | D17: 4 | E17: 5 | F17: 6 | G17: 7 | H17: 8 | I17: 9 | J17: 10 | K17: 11 | L17: 12 | M17: 13 | N17: 14 | O17: 15
M18: =J18*5% -> 0 | N18: =IF((J18-M18-L18)<0,0,J18-M18-L18) -> 0
M19: =J19*5% -> 0 | N19: =IF((J19-M19-L19)<0,0,J19-M19-L19) -> 0
M20: =J20*5% -> 0 | N20: =IF((J20-M20-L20)<0,0,J20-M20-L20) -> 0
M21: =J21*5% -> 0 | N21: =IF((J21-M21-L21)<0,0,J21-M21-L21) -> 0
A32: 3.2. Сведения о фактическом достижении показателей, характеризующих объем муниципальной услуги
A33: Уникальный номер реестровой записи | B33: Показатель, характеризующий содержание муниципальной услуги | E33: Показатель, характеризующий условия (формы) оказания муниципальной услуги | G33: Показатель объема муниципальной услуги | P33: Размер платы (цена, тариф)
G34: наименование показателя | H34: единица измерения | J34: значение | M34: допустимое (возможное) отклонение | N34: отклонение, превышающее допустимое (возможное) отклонение | O34: причина отклонения
B35: наименование показателя | C35: наименование показателя | D35: наименование показателя | E35: наименование показателя | F35: наименование показателя | H35: наименование | I35: код по ОКЕИ | J35: утверждено в муниципальном задании на год | K35: утверждено в муниципальном задании на отчетную дату | L35: исполнено на отчетную дату
A36: 1 | B36: 2 | C36: 3 | D36: 4 | E36: 5 | F36: 6 | G36: 7 | H36: 8 | I36: 9 | J36: 10 | K36: 11 | L36: 12 | M36: 13 | N36: 14 | O36: 15 | P36: 16
M37: =J37*5% -> 0 | N37: =IF((J37-M37-L37)<0,0,J37-M37-L37) -> 0

Sheet Часть 1 (4) (hidden)
A1: Часть 1. Сведения об оказываемых муниципальных услугах
H3: Раздел ____
A5: 1. Наименование муниципальной услуги: | H5: Код по общероссийскому базовому перечню или региональному перечню
A7: 2. Категории потребителей муниципальной услуги:
A9: 3. Сведения о фактическом достижении показателей, характеризующих объем и качество муниципальной услуги
A10: 2. Категории потребителей муниципальной услуги:
A12: 3. Сведения о фактическом достижении показателей, характеризующих объем и качество муниципальной услуги
A13: 3.1. Сведения о фактическом достижении показателей, характеризующих качество муниципальной услуги
A14: Уникальный номер реестровой записи | B14: Показатель, характеризующий содержание муниципальной услуги | E14: Показатель, характеризующий условия (формы) оказания муниципальной услуги | G14: Показатель качества муниципальной услуги
G15: наименование показателя | H15: единица измерения | J15: значение | M15: допустимое (возможное) отклонение | N15: отклонение, превышающее допустимое (возможное) отклонение | O15: причина отклонения
B16: наименование показателя | C16: наименование показателя | D16: наименование показателя | E16: наименование показателя | F16: наименование показателя | H16: наименование | I16: код по ОКЕИ | J16: утверждено в муниципальном задании на год | K16: утверждено в муниципальном задании на отчетную дату | L16: исполнено на отчетную дату
A17: 1 | B17: 2 | C17: 3 | D17: 4 | E17: 5 | F17: 6 | G17: 7 | H17: 8 | I17: 9 | J17: 10 | K17: 11 | L17: 12 | M17: 13 | N17: 14 | O17: 15
M18: =J18*5% -> 0 | N18: =IF((J18-M18-L18)<0,0,J18-M18-L18) -> 0
M19: =J19*5% -> 0 | N19: =IF((J19-M19-L19)<0,0,J19-M19-L19) -> 0
M20: =J20*5% -> 0 | N20: =IF((J20-M20-L20)<0,0,J20-M20-L20) -> 0
M21: =J21*5% -> 0 | N21: =IF((J21-M21-L21)<0,0,J21-M21-L21) -> 0
A32: 3.2. Сведения о фактическом достижении показателей, характеризующих объем муниципальной услуги
A33: Уникальный номер реестровой записи | B33: Показатель, характеризующий содержание муниципальной услуги | E33: Показатель, характеризующий условия (формы) оказания муниципальной услуги | G33: Показатель объема муниципальной услуги | P33: Размер платы (цена, тариф)
G34: наименование показателя | H34: единица измерения | J34: значение | M34: допустимое (возможное) отклонение | N34: отклонение, превышающее допустимое (возможное) отклонение | O34: причина отклонения
B35: наименование показателя | C35: наименование показателя | D35: наименование показателя | E35: наименование показателя | F35: наименование показателя | H35: наименование | I35: код по ОКЕИ | J35: утверждено в муниципальном задании на год | K35: утверждено в муниципальном задании на отчетную дату | L35: исполнено на отчетную дату
A36: 1 | B36: 2 | C36: 3 | D36: 4 | E36: 5 | F36: 6 | G36: 7 | H36: 8 | I36: 9 | J36: 10 | K36: 11 | L36: 12 | M36: 13 | N36: 14 | O36: 15 | P36: 16
M37: =J37*5% -> 0 | N37: =IF((J37-M37-L37)<0,0,J37-M37-L37) -> 0

Sheet Часть 2
A1: Часть 2. Сведения о выполняемых работах
H3: Раздел ____
A5: 1. Наименование работы: | H5: Код по общероссийскому базовому перечню или региональному перечню
A7: 2. Категории потребителей работы:
A9: 3. Сведения о фактическом достижении показателей, характеризующих объем и качество муниципальной услуги
A10: 2. Категории потребителей муниципальной услуги:
A12: 3. Сведения о фактическом достижении показателей, характеризующих объем и качество работы
A13: 3.1. Сведения о фактическом достижении показателей, характеризующих качество работы
A14: Уникальный номер реестровой записи | B14: Показатель, характеризующий содержание работы | E14: Показатель, характеризующий условия (формы) выполнения работы | G14: Показатель качества работы
G15: наименование показателя | H15: единица измерения | J15: значение | M15: допустимое (возможное) отклонение | N15: отклонение, превышающее допустимое (возможное) отклонение | O15: причина отклонения
B16: наименование показателя | C16: наименование показателя | D16: наименование показателя | E16: наименование показателя | F16: наименование показателя | H16: наименование | I16: код по ОКЕИ | J16: утверждено в муниципальном задании на год | K16: утверждено в муниципальном задании на отчетную дату | L16: исполнено на отчетную дату
A17: 1 | B17: 2 | C17: 3 | D17: 4 | E17: 5 | F17: 6 | G17: 7 | H17: 8 | I17: 9 | J17: 10 | K17: 11 | L17: 12 | M17: 13 | N17: 14 | O17: 15
M18: =J18*5% -> 0 | N18: =IF((J18-M18-L18)<0,0,J18-M18-L18) -> 0
M19: =J19*5% -> 0 | N19: =IF((J19-M19-L19)<0,0,J19-M19-L19) -> 0
M20: =J20*5% -> 0 | N20: =IF((J20-M20-L20)<0,0,J20-M20-L20) -> 0
M21: =J21*5% -> 0 | N21: =IF((J21-M21-L21)<0,0,J21-M21-L21) -> 0
A32: 3.2. Сведения о фактическом достижении показателей, характеризующих объем муниципальной услуги
A33: Уникальный номер реестровой записи | B33: Показатель, характеризующий содержание работы | E33: Показатель, характеризующий условия (формы) выполнения работы | G33: Показатель объема работы | P33: Размер платы (цена, тариф)
G34: наименование показателя | H34: единица измерения | J34: значение | M34: допустимое (возможное) отклонение | N34: отклонение, превышающее допустимое (возможное) отклонение | O34: причина отклонения
B35: наименование показателя | C35: наименование показателя | D35: наименование показателя | E35: наименование показателя | F35: наименование показателя | H35: наименование | I35: код по ОКЕИ | J35: утверждено в муниципальном задании на год | K35: утверждено в муниципальном задании на отчетную дату | L35: исполнено на отчетную дату
A36: 1 | B36: 2 | C36: 3 | D36: 4 | E36: 5 | F36: 6 | G36: 7 | H36: 8 | I36: 9 | J36: 10 | K36: 11 | L36: 12 | M36: 13 | N36: 14 | O36: 15 | P36: 16
M37: =J37*5% -> 0 | N37: =IF((J37-M37-L37)<0,0,J37-M37-L37) -> 0

Sheet Часть 2 (2) (hidden)
A1: Часть 2. Сведения о выполняемых работах
H3: Раздел ____
A5: 1. Наименование работы: | H5: Код по общероссийскому базовому перечню или региональному перечню
A7: 2. Категории потребителей работы:
A9: 3. Сведения о фактическом достижении показателей, характеризующих объем и качество муниципальной услуги
A10: 2. Категории потребителей муниципальной услуги:
A12: 3. Сведения о фактическом достижении показателей, характеризующих объем и качество работы
A13: 3.1. Сведения о фактическом достижении показателей, характеризующих качество работы
A14: Уникальный номер реестровой записи | B14: Показатель, характеризующий содержание работы | E14: Показатель, характеризующий условия (формы) выполнения работы | G14: Показатель качества работы
G15: наименование показателя | H15: единица измерения | J15: значение | M15: допустимое (возможное) отклонение | N15: отклонение, превышающее допустимое (возможное) отклонение | O15: причина отклонения
B16: наименование показателя | C16: наименование показателя | D16: наименование показателя | E16: наименование показателя | F16: наименование показателя | H16: наименование | I16: код по ОКЕИ | J16: утверждено в муниципальном задании на год | K16: утверждено в муниципальном задании на отчетную дату | L16: исполнено на отчетную дату
A17: 1 | B17: 2 | C17: 3 | D17: 4 | E17: 5 | F17: 6 | G17: 7 | H17: 8 | I17: 9 | J17: 10 | K17: 11 | L17: 12 | M17: 13 | N17: 14 | O17: 15
M18: =J18*5% -> 0 | N18: =IF((J18-M18-L18)<0,0,J18-M18-L18) -> 0
M19: =J19*5% -> 0 | N19: =IF((J19-M19-L19)<0,0,J19-M19-L19) -> 0
M20: =J20*5% -> 0 | N20: =IF((J20-M20-L20)<0,0,J20-M20-L20) -> 0
M21: =J21*5% -> 0 | N21: =IF((J21-M21-L21)<0,0,J21-M21-L21) -> 0
A32: 3.2. Сведения о фактическом достижении показателей, характеризующих объем муниципальной услуги
A33: Уникальный номер реестровой записи | B33: Показатель, характеризующий содержание работы | E33: Показатель, характеризующий условия (формы) выполнения работы | G33: Показатель объема работы | P33: Размер платы (цена, тариф)
G34: наименование показателя | H34: единица измерения | J34: значение | M34: допустимое (возможное) отклонение | N34: отклонение, превышающее допустимое (возможное) отклонение | O34: причина отклонения
B35: наименование показателя | C35: наименование показателя | D35: наименование показателя | E35: наименование показателя | F35: наименование показателя | H35: наименование | I35: код по ОКЕИ | J35: утверждено в муниципальном задании на год | K35: утверждено в муниципальном задании на отчетную дату | L35: исполнено на отчетную дату
A36: 1 | B36: 2 | C36: 3 | D36: 4 | E36: 5 | F36: 6 | G36: 7 | H36: 8 | I36: 9 | J36: 10 | K36: 11 | L36: 12 | M36: 13 | N36: 14 | O36: 15 | P36: 16
M37: =J37*5% -> 0 | N37: =IF((J37-M37-L37)<0,0,J37-M37-L37) -> 0

Sheet Часть 2 (3) (hidden)
A1: Часть 2. Сведения о выполняемых работах
H3: Раздел ____
A5: 1. Наименование работы: | H5: Код по общероссийскому базовому перечню или региональному перечню
A7: 2. Категории потребителей работы:
A9: 3. Сведения о фактическом достижении показателей, характеризующих объем и качество муниципальной услуги
A10: 2. Категории потребителей муниципальной услуги:
A12: 3. Сведения о фактическом достижении показателей, характеризующих объем и качество работы
A13: 3.1. Сведения о фактическом достижении показателей, характеризующих качество работы
A14: Уникальный номер реестровой записи | B14: Показатель, характеризующий содержание работы | E14: Показатель, характеризующий условия (формы) выполнения работы | G14: Показатель качества работы
G15: наименование показателя | H15: единица измерения | J15: значение | M15: допустимое (возможное) отклонение | N15: отклонение, превышающее допустимое (возможное) отклонение | O15: причина отклонения
B16: наименование показателя | C16: наименование показателя | D16: наименование показателя | E16: наименование показателя | F16: наименование показателя | H16: наименование | I16: код по ОКЕИ | J16: утверждено в муниципальном задании на год | K16: утверждено в муниципальном задании на отчетную дату | L16: исполнено на отчетную дату
A17: 1 | B17: 2 | C17: 3 | D17: 4 | E17: 5 | F17: 6 | G17: 7 | H17: 8 | I17: 9 | J17: 10 | K17: 11 | L17: 12 | M17: 13 | N17: 14 | O17: 15
M18: =J18*5% -> 0 | N18: =IF((J18-M18-L18)<0,0,J18-M18-L18) -> 0
M19: =J19*5% -> 0 | N19: =IF((J19-M19-L19)<0,0,J19-M19-L19) -> 0
M20: =J20*5% -> 0 | N20: =IF((J20-M20-L20)<0,0,J20-M20-L20) -> 0
M21: =J21*5% -> 0 | N21: =IF((J21-M21-L21)<0,0,J21-M21-L21) -> 0
A32: 3.2. Сведения о фактическом достижении показателей, характеризующих объем муниципальной услуги
A33: Уникальный номер реестровой записи | B33: Показатель, характеризующий содержание работы | E33: Показатель, характеризующий условия (формы) выполнения работы | G33: Показатель объема работы | P33: Размер платы (цена, тариф)
G34: наименование показателя | H34: единица измерения | J34: значение | M34: допустимое (возможное) отклонение | N34: отклонение, превышающее допустимое (возможное) отклонение | O34: причина отклонения
B35: наименование показателя | C35: наименование показателя | D35: наименование показателя | E35: наименование показателя | F35: наименование показателя | H35: наименование | I35: код по ОКЕИ | J35: утверждено в муниципальном задании на год | K35: утверждено в муниципальном задании на отчетную дату | L35: исполнено на отчетную дату
A36: 1 | B36: 2 | C36: 3 | D36: 4 | E36: 5 | F36: 6 | G36: 7 | H36: 8 | I36: 9 | J36: 10 | K36: 11 | L36: 12 | M36: 13 | N36: 14 | O36: 15 | P36: 16
M37: =J37*5% -> 0 | N37: =IF((J37-M37-L37)<0,0,J37-M37-L37) -> 0

Sheet Часть 2 (4) (hidden)
A1: Часть 2. Сведения о выполняемых работах
H3: Раздел ____
A5: 1. Наименование работы: | H5: Код по общероссийскому базовому перечню или региональному перечню
A7: 2. Категории потребителей работы:
A9: 3. Сведения о фактическом достижении показателей, характеризующих объем и качество муниципальной услуги
A10: 2. Категории потребителей муниципальной услуги:
A12: 3. Сведения о фактическом достижении показателей, характеризующих объем и качество работы
A13: 3.1. Сведения о фактическом достижении показателей, характеризующих качество работы
A14: Уникальный номер реестровой записи | B14: Показатель, характеризующий содержание работы | E14: Показатель, характеризующий условия (формы) выполнения работы | G14: Показатель качества работы
G15: наименование показателя | H15: единица измерения | J15: значение | M15: допустимое (возможное) отклонение | N15: отклонение, превышающее допустимое (возможное) отклонение | O15: причина отклонения
B16: наименование показателя | C16: наименование показателя | D16: наименование показателя | E16: наименование показателя | F16: наименование показателя | H16: наименование | I16: код по ОКЕИ | J16: утверждено в муниципальном задании на год | K16: утверждено в муниципальном задании на отчетную дату | L16: исполнено на отчетную дату
A17: 1 | B17: 2 | C17: 3 | D17: 4 | E17: 5 | F17: 6 | G17: 7 | H17: 8 | I17: 9 | J17: 10 | K17: 11 | L17: 12 | M17: 13 | N17: 14 | O17: 15
M18: =J18*5% -> 0 | N18: =IF((J18-M18-L18)<0,0,J18-M18-L18) -> 0
M19: =J19*5% -> 0 | N19: =IF((J19-M19-L19)<0,0,J19-M19-L19) -> 0
M20: =J20*5% -> 0 | N20: =IF((J20-M20-L20)<0,0,J20-M20-L20) -> 0
M21: =J21*5% -> 0 | N21: =IF((J21-M21-L21)<0,0,J21-M21-L21) -> 0
A32: 3.2. Сведения о фактическом достижении показателей, характеризующих объем муниципальной услуги
A33: Уникальный номер реестровой записи | B33: Показатель, характеризующий содержание работы | E33: Показатель, характеризующий условия (формы) выполнения работы | G33: Показатель объема работы | P33: Размер платы (цена, тариф)
G34: наименование показателя | H34: единица измерения | J34: значение | M34: допустимое (возможное) отклонение | N34: отклонение, превышающее допустимое (возможное) отклонение | O34: причина отклонения
B35: наименование показателя | C35: наименование показателя | D35: наименование показателя | E35: наименование показателя | F35: наименование показателя | H35: наименование | I35: код по ОКЕИ | J35: утверждено в муниципальном задании на год | K35: утверждено в муниципальном задании на отчетную дату | L35: исполнено на отчетную дату
A36: 1 | B36: 2 | C36: 3 | D36: 4 | E36: 5 | F36: 6 | G36: 7 | H36: 8 | I36: 9 | J36: 10 | K36: 11 | L36: 12 | M36: 13 | N36: 14 | O36: 15 | P36: 16
M37: =J37*5% -> 0 | N37: =IF((J37-M37-L37)<0,0,J37-M37-L37) -> 0

Sheet Часть 3
A4: Часть 3. Отчет о финансовом обеспечении муниципального
A5: ="на "&TEXT(надату,"[$-F800]ДДДД, ММММ ДД, ГГГГ") -> на 1 января 2023 г.
A12: Единица измерения: тыс. руб.
A13: Наименование муниципальной услуги (работы) | B13: Утвержденный объем финансирования | C13: Остаток неиспользованных средств на начало отчетного периода | F13: Поступило средств | I13: Произведено расходов (кассовые расходы) | L13: Остаток неиспользованных средств на конец отчетного периода
C14: всего | D14: в том числе: | F14: всего | G14: в том числе: | I14: всего | J14: в том числе: | L14: всего | M14: в том числе:
D15: за счет средств бюджета города Перми | E15: за счет межбюджетных трансфертов | G15: за счет средств бюджета города Перми | H15: за счет межбюджетных трансфертов | J15: за счет средств бюджета города Перми | K15: за счет межбюджетных трансфертов | M15: за счет средств бюджета города Перми | N15: за счет межбюджетных трансфертов
A16: 1 | B16: 2 | C16: 3 | D16: 4 | E16: 5 | F16: 6 | G16: 7 | H16: 8 | I16: 9 | J16: 10 | K16: 11 | L16: 12 | M16: 13 | N16: 14
A17: Реализация дополнительных общеразвивающих программ | B17: 1977 | C17: =D17+E17 -> 0 | F17: =G17+H17 -> 1,977.00 | G17: 1977 | I17: =J17+K17 -> 1,977.00 | J17: 1977 | L17: =M17+N17 -> 0 | M17: =D17+G17-J17 -> 0 | N17: =E17+H17-K17 -> 0
A18: Реализация дополнительных предпрофессиональных программ в области искусств | B18: 27907.2 | C18: =D18+E18 -> 57.86 | D18: 57.86 | F18: =G18+H18 -> 27,907.20 | G18: 27907.2 | I18: =J18+K18 -> 27,943.97 | J18: 27943.97 | L18: =M18+N18 -> 21.09 | M18: =D18+G18-J18 -> 21.09 | N18: =E18+H18-K18 -> 0
A19: Всего | C19: =SUM(C17:C18) -> 57.86 | D19: 57.86 | E19: 0 | F19: 29,884.20 | G19: 29,884.20 | H19: 0 | I19: 29,920.97 | J19: 29,920.97 | K19: 0 | L19: 21.09 | M19: 21.09 | N19: 0
A21: Руководитель (уполномоченное лицо) учреждения
D22: (подпись) | F22: (расшифровка подписи)
A23: Исполнитель (лицо, ответственное за составление отчета)
D24: (подпись) | F24: (расшифровка подписи)
A26: "___" ______________ 20__ года

Sheet коды субсибий (hidden)
A1: Субсидия
A2: код | B2: Наименование
A3: 2 | B3: 1
A4: 901010000 | B4: Мероприятия, направленные на решение отдельных вопросов местного значения в микрорайонах города Перми
A5: 901010027 | B5: Софинансирование проектов инициативного бюджетирования
A6: 901010047 | B6: Организация и проведение фестиваля Мартина МакДонаха
A7: 901010056 | B7: Выполнение работ по сохранению объектов культурного наследия, находящихся в собственности муниципальных образований
A8: 901010057 | B8: Проведение экологического фестиваля МАУК "ПермьПарк"
A9: 901010058 | B9: Освещение деятельности в сфере культуры посредством размещения публикаций о мероприятиях, направленных на укрепление гражданской идентичности и духовно-нравственных ценностей
A10: 901020000 | B10: Меры социальной поддержки педагогических работников - средства г. Перми
A11: 901030000 | B11: Обеспечение работников путевками на санаторно-курортное лечение и оздоровление-средства г. Перми
A12: 901050000 | B12: Мероприятия по первичной профилактике употребления психоактивных веществ
A13: 901090000 | B13: Приведение в нормативное состояние подведомственных учреждений ДКМП
A14: 901100000 | B14: Мероприятия по поддержке одаренных детей города Перми
A15: 901110000 | B15: Мероприятия в области культуры социальной направленности
A16: 901120000 | B16: Культурно-зрелищные мероприятия
A17: 901130000 | B17: Целевая субсидия на поддержку инициативной и талантливой молодежи
A18: 901240000 | B18: Оборудование объектов социальной инфраструктуры средствами беспрепятственного доступа
A19: 901340000 | B19: Расходы, связанные с созданием театральных постановок и концертных программ
A20: 901390000 | B20: Повышение фонда оплаты труда
A21: 901490000 | B21: Обеспечение работников путевками на санаторно-курортное лечение и оздоровление-средства Пермского края
A22: 901550000 | B22: Целевая субсидия на проведение ремонтно-реставрационных работ по приведению в нормативное состояние объектов культурного наследия и монументального искусства
A23: 901580000 | B23: Мероприятия по содействию формированию гармоничной межнациональной ситуации в городе Перми
A24: 901590000 | B24: Мероприятия по содействию формированию гармоничной межконфессиональной ситуации в городе Перми
A25: 901750000 | B25: Оплата взносов на капитальный ремонт
A26: 901780000 | B26: Целевая субсидия Дворцу молодежи на организацию занятости молодежи

Sheet коды КБК (hidden)
A1: Код бюджетной классификации Российской Федерации
C2: 3
A3: КВСР | B3: КФСР | C3: КЦСР | D3: КВР | E3: Доп. ФК | F3: Доп. ЭК | H3: Код бюджетной классификации Российской Федерации
A4: 924 | B4: 0703 | C4: 0330101070 | D4: 622 | E4: 34000000 | F4: 110000000000 | H4: ="" & A4 & " " & B4 & " " & C4 & " " & D4 & " " & E4 & " " & F4 -> 924 0703 0330101070 622 34000000 110000000000
A5: 924 | B5: 0703 | C5: 0330123560 | D5: 622 | E5: 34000000 | F5: 110000000000 | H5: ="" & A5 & " " & B5 & " " & C5 & " " & D5 & " " & E5 & " " & F5 -> 924 0703 0330123560 622 34000000 110000000000
A6: 924 | B6: 0703 | C6: 0340101060 | D6: 622 | E6: 34000000 | F6: 110000000000 | H6: 924 0703 0340101060 622 34000000 110000000000
A7: 924 | B7: 0703 | C7: 0340122140 | D7: 622 | E7: 34000000 | F7: 110000000000 | H7: 924 0703 0340122140 622 34000000 110000000000
A8: 924 | B8: 0703 | C8: 0340182020 | D8: 622 | E8: 34000000 | F8: 130000000000 | H8: 924 0703 0340182020 622 34000000 130000000000
A9: 924 | B9: 0703 | C9: 0620123570 | D9: 622 | E9: 32000000 | F9: 110000000000 | H9: 924 0703 0620123570 622 32000000 110000000000
A10: 924 | B10: 0707 | C10: 0120123530 | D10: 622 | E10: 81000000 | F10: 110000000000 | H10: 924 0707 0120123530 622 81000000 110000000000
A11: 924 | B11: 0707 | C11: 0210321090 | D11: 622 | E11: 82000000 | F11: 130000000000 | H11: 924 0707 0210321090 622 82000000 130000000000
A12: 924 | B12: 0707 | C12: 0410101060 | D12: 622 | E12: 34000000 | F12: 110000000000 | H12: 924 0707 0410101060 622 34000000 110000000000
A13: 924 | B13: 0707 | C13: 0410123140 | D13: 622 | E13: 34000000 | F13: 110000000000 | H13: 924 0707 0410123140 622 34000000 110000000000
A14: 924 | B14: 0707 | C14: 0420100740 | D14: 622 | E14: 34000000 | F14: 110000000000 | H14: 924 0707 0420100740 622 34000000 110000000000
A15: 924 | B15: 0707 | C15: 9160000000 | D15: 622 | E15: 34000000 | F15: 110000000000 | H15: 924 0707 9160000000 622 34000000 110000000000
A16: 924 | B16: 0709 | C16: 0340100680 | D16: 622 | E16: 34000000 | F16: 110000000000 | H16: 924 0709 0340100680 622 34000000 110000000000
A17: 924 | B17: 0709 | C17: 9160000000 | D17: 622 | E17: 34000000 | F17: 110000000000 | H17: 924 0709 9160000000 622 34000000 110000000000
A18: 924 | B18: 0801 | C18: 0110121330 | D18: 622 | E18: 81000000 | F18: 110000000000 | H18: 924 0801 0110121330 622 81000000 110000000000
A19: 924 | B19: 0801 | C19: 011012Р080 | D19: 622 | E19: 81000000 | F19: 111000000000 | H19: 924 0801 011012Р080 622 81000000 111000000000
A20: 924 | B20: 0801 | C20: 011012Р080 | D20: 622 | E20: 81000000 | F20: 211000000000 | H20: 924 0801 011012Р080 622 81000000 211000000000
A21: 924 | B21: 0801 | C21: 011012Р080 | D21: 622 | E21: 81000000 | F21: 534000000000 | H21: 924 0801 011012Р080 622 81000000 534000000000
A22: 924 | B22: 0801 | C22: 0120123520 | D22: 622 | E22: 81000000 | F22: 110000000000 | H22: 924 0801 0120123520 622 81000000 110000000000
A23: 924 | B23: 0801 | C23: 0120123530 | D23: 612 | E23: 81000000 | F23: 110000000000 | H23: 924 0801 0120123530 612 81000000 110000000000
A24: 924 | B24: 0801 | C24: 0120123530 | D24: 622 | E24: 81000000 | F24: 110000000000 | H24: 924 0801 0120123530 622 81000000 110000000000
A25: 924 | B25: 0801 | C25: 0310100720 | D25: 612 | E25: 34000000 | F25: 110000000000 | H25: 924 0801 0310100720 612 34000000 110000000000
A26: 924 | B26: 0801 | C26: 0310100720 | D26: 622 | E26: 34000000 | F26: 110000000000 | H26: 924 0801 0310100720 622 34000000 110000000000
A27: 924 | B27: 0801 | C27: 0310101060 | D27: 612 | E27: 34000000 | F27: 110000000000 | H27: 924 0801 0310101060 612 34000000 110000000000
A28: 924 | B28: 0801 | C28: 0310101060 | D28: 622 | E28: 34000000 | F28: 110000000000 | H28: 924 0801 0310101060 622 34000000 110000000000
A29: 924 | B29: 0801 | C29: 031012К030 | D29: 612 | E29: 34000000 | F29: 111000000000 | H29: 924 0801 031012К030 612 34000000 111000000000
A30: 924 | B30: 0801 | C30: 031012К030 | D30: 612 | E30: 34000000 | F30: 211000000000 | H30: 924 0801 031012К030 612 34000000 211000000000
A31: 924 | B31: 0801 | C31: 031012К030 | D31: 612 | E31: 34000000 | F31: 213000000000 | H31: 924 0801 031012К030 612 34000000 213000000000
A32: 924 | B32: 0801 | C32: 0310200810 | D32: 612 | E32: 34000000 | F32: 110000000000 | H32: 924 0801 0310200810 612 34000000 110000000000
A33: 924 | B33: 0801 | C33: 0320100870 | D33: 612 | E33: 34000000 | F33: 110000000000 | H33: 924 0801 0320100870 612 34000000 110000000000
A34: 924 | B34: 0801 | C34: 0320100870 | D34: 622 | E34: 34000000 | F34: 110000000000 | H34: 924 0801 0320100870 622 34000000 110000000000
A35: 924 | B35: 0801 | C35: 0320101060 | D35: 612 | E35: 34000000 | F35: 110000000000 | H35: 924 0801 0320101060 612 34000000 110000000000
A36: 924 | B36: 0801 | C36: 0320101060 | D36: 622 | E36: 34000000 | F36: 110000000000 | H36: 924 0801 0320101060 622 34000000 110000000000
A37: 924 | B37: 0801 | C37: 0320201060 | D37: 612 | E37: 34000000 | F37: 110000000000 | H37: 924 0801 0320201060 612 34000000 110000000000
A38: 924 | B38: 0801 | C38: 0320201060 | D38: 622 | E38: 34000000 | F38: 110000000000 | H38: 924 0801 0320201060 622 34000000 110000000000
A39: 924 | B39: 0801 | C39: 0330100750 | D39: 622 | E39: 34000000 | F39: 110000000000 | H39: 924 0801 0330100750 622 34000000 110000000000
A40: 924 | B40: 0801 | C40: 0330101070 | D40: 612 | E40: 34000000 | F40: 110000000000 | H40: 924 0801 0330101070 612 34000000 110000000000
A41: 924 | B41: 0801 | C41: 0330101070 | D41: 622 | E41: 34000000 | F41: 110000000000 | H41: 924 0801 0330101070 622 34000000 110000000000
A42: 924 | B42: 0801 | C42: 0330123560 | D42: 612 | E42: 34000000 | F42: 110000000000 | H42: 924 0801 0330123560 612 34000000 110000000000
A43: 924 | B43: 0801 | C43: 0330123560 | D43: 622 | E43: 34000000 | F43: 110000000000 | H43: 924 0801 0330123560 622 34000000 110000000000
A44: 924 | B44: 0801 | C44: 0330123560 | D44: 622 | E44: 34000000 | F44: 110001280011 | H44: 924 0801 0330123560 622 34000000 110001280011
A45: 924 | B45: 0801 | C45: 0330123560 | D45: 622 | E45: 34000000 | F45: 110003450020 | H45: 924 0801 0330123560 622 34000000 110003450020
A46: 924 | B46: 0801 | C46: 03301SК190 | D46: 622 | E46: 34000000 | F46: 111000000000 | H46: 924 0801 03301SК190 622 34000000 111000000000
A47: 924 | B47: 0801 | C47: 03301SК190 | D47: 622 | E47: 34000000 | F47: 211000000000 | H47: 924 0801 03301SК190 622 34000000 211000000000
A48: 924 | B48: 0801 | C48: 0350101060 | D48: 622 | E48: 34000000 | F48: 110000000000 | H48: 924 0801 0350101060 622 34000000 110000000000
A49: 924 | B49: 0801 | C49: 0610221010 | D49: 612 | E49: 32000000 | F49: 110000000000 | H49: 924 0801 0610221010 612 32000000 110000000000
A50: 924 | B50: 0801 | C50: 0620123570 | D50: 612 | E50: 32000000 | F50: 110000000000 | H50: 924 0801 0620123570 612 32000000 110000000000
A51: 924 | B51: 0801 | C51: 0620123570 | D51: 622 | E51: 32000000 | F51: 110000000000 | H51: 924 0801 0620123570 622 32000000 110000000000
A52: 924 | B52: 0801 | C52: 1410922200 | D52: 622 | E52: 72000000 | F52: 110000000000 | H52: 924 0801 1410922200 622 72000000 110000000000
A53: 924 | B53: 0801 | C53: 9160000000 | D53: 612 | E53: 34000000 | F53: 110000000000 | H53: 924 0801 9160000000 612 34000000 110000000000
A54: 924 | B54: 0801 | C54: 9160000000 | D54: 622 | E54: 34000000 | F54: 110000000000 | H54: 924 0801 9160000000 622 34000000 110000000000
A55: 924 | B55: 1003 | C55: 0340182020 | D55: 622 | E55: 34000000 | F55: 130000000000 | H55: 924 1003 0340182020 622 34000000 130000000000
A56: 924 | B56: 1003 | C56: 06101SС240 | D56: 612 | E56: 32000000 | F56: 130000000000 | H56: 924 1003 06101SС240 612 32000000 130000000000
A57: 924 | B57: 1003 | C57: 06101SС240 | D57: 612 | E57: 32000000 | F57: 211000000000 | H57: 924 1003 06101SС240 612 32000000 211000000000
A58: 924 | B58: 1003 | C58: 06101SС240 | D58: 622 | E58: 32000000 | F58: 130000000000 | H58: 924 1003 06101SС240 622 32000000 130000000000
A59: 924 | B59: 1003 | C59: 06101SС240 | D59: 622 | E59: 32000000 | F59: 211000000000 | H59: 924 1003 06101SС240 622 32000000 211000000000
